bitfinex/quotes_BTCUSD_20250610
["timestamp","ask_amount","ask_price","bid_price","bid_amount"]
[1749572208507,0.02948333,109150.0,109140.0,2.35841051]
[1749572208726,0.03964486,109150.0,109140.0,1.54892077]
[1749572208929,0.03048333,109150.0,109140.0,1.65544297]
[1749572209158,0.03864469,109150.0,109140.0,1.65544297]
[1749572209371,0.04780622,109150.0,109140.0,1.65544297]
[1749572209531,0.03864469,109150.0,109140.0,1.65744297]
[1749572209739,0.02948333,109150.0,109140.0,1.666605]
[1749572209945,0.03864478,109150.0,109140.0,1.64828077]
[1749572210166,0.1395694,109160.0,109140.0,1.63911848]
[1749572210401,0.1545694,109160.0,109150.0,0.96949183]
[1749572210604,0.1545694,109160.0,109150.0,0.99126462]
[1749572210806,0.1495694,109160.0,109150.0,0.89390462]
[1749572211012,0.1495694,109160.0,109150.0,1.39126462]
[1749572211934,0.1495694,109160.0,109150.0,1.39226462]
[1749572212414,0.1105694,109160.0,109150.0,1.39226462]
[1749572212656,0.0955694,109160.0,109150.0,1.39326462]
[1749572213362,0.1120694,109160.0,109150.0,0.60213894]
[1749572213584,0.1276694,109160.0,109150.0,0.61248619]
[1749572214026,0.1276694,109160.0,109150.0,0.62702704]
[1749572216457,0.1276694,109160.0,109150.0,0.52966704]
[1749572216748,0.1276694,109160.0,109150.0,0.58406438]
[1749572216969,0.1276694,109160.0,109150.0,0.46004541]
[1749572217188,0.1276694,109160.0,109150.0,0.48725534]
[1749572217404,0.1276694,109160.0,109150.0,0.45098272]
[1749572217620,0.1276694,109160.0,109150.0,0.48725534]
[1749572217843,0.1276694,109160.0,109150.0,0.48525534]
[1749572218274,0.1286694,109160.0,109150.0,0.48525534]
[1749572218707,0.1286694,109160.0,109150.0,0.08525534]
[1749572219205,0.6573828,109160.0,109150.0,0.04898272]
[1749572219629,0.6573828,109160.0,109150.0,0.02177279]
[1749572220733,0.6593828,109160.0,109150.0,0.02177279]
[1749572220941,0.5610228,109160.0,109150.0,0.02177279]
[1749572221162,0.6849028,109160.0,109150.0,0.02177279]
[1749572221375,0.6869028,109160.0,109150.0,0.02177279]
[1749572223230,0.6869028,109160.0,109130.0,0.06348255]
[1749572223231,0.04076237,109140.0,109130.0,0.06348255]
[1749572223318,0.22401324,109140.0,109130.0,0.02720993]
[1749572223526,0.32137324,109140.0,109130.0,0.02720993]
[1749572224186,0.44003055,109140.0,109130.0,0.02720993]
[1749572224643,0.44003055,109140.0,109120.0,0.46548255]
[1749572224644,0.22403087,109130.0,109120.0,0.46548255]
[1749572225267,0.22403087,109130.0,109120.0,0.46548753]
[1749572225481,0.22403087,109130.0,109120.0,0.56575268]
[1749572225703,0.22403087,109130.0,109120.0,0.49266996]
[1749572226546,0.22403087,109130.0,109120.0,0.09266996]
[1749572226978,0.22403087,109130.0,109120.0,0.49266996]
[1749572227319,0.22403087,109130.0,109120.0,0.43827262]
[1749572229345,0.18503087,109130.0,109120.0,0.46544274]
[1749572229554,0.19419408,109130.0,109120.0,0.46544274]
[1749572229970,0.19419408,109130.0,109120.0,0.06544274]
[1749572230383,0.19419408,109130.0,109120.0,0.46544274]
[1749572230588,0.19419408,109130.0,109120.0,0.42917012]
[1749572230836,0.19419408,109130.0,109120.0,0.402]
[1749572231044,0.29155408,109130.0,109120.0,0.402]
[1749572231639,0.29355408,109130.0,109120.0,0.402]
[1749572233392,0.29555408,109130.0,109120.0,0.402]
[1749572233607,0.29555408,109130.0,109120.0,0.002]
[1749572234438,0.38690748,109130.0,109120.0,0.002]
[1749572234870,0.72690748,109130.0,109120.0,0.002]
[1749572235089,0.72690748,109130.0,109120.0,0.02373423]
[1749572235309,0.72690748,109130.0,109120.0,0.002]
[1749572235732,0.75342748,109130.0,109120.0,0.002]
[1749572235942,0.62954748,109130.0,109120.0,0.002]
[1749572236148,0.75342748,109130.0,109120.0,0.002]
[1749572236558,0.62954748,109130.0,109120.0,0.002]
[1749572236744,0.75342748,109130.0,109120.0,0.002]
[1749572238416,0.84478088,109130.0,109120.0,0.002]
[1749572238839,0.75342748,109130.0,109120.0,0.002]
[1749572239044,0.62954748,109130.0,109120.0,0.002]
[1749572239249,0.75342748,109130.0,109120.0,0.002]
[1749572239461,0.62954748,109130.0,109120.0,0.002]
[1749572239677,0.75342748,109130.0,109120.0,0.002]
[1749572239891,0.66207408,109130.0,109120.0,0.002]
[1749572240310,0.66207408,109130.0,109120.0,0.02372676]
[1749572246173,0.66207408,109130.0,109120.0,0.05089688]
[1749572246395,0.64597408,109130.0,109120.0,0.05089688]
[1749572246617,0.63047408,109130.0,109120.0,0.05089688]
[1749572249602,0.63047408,109130.0,109120.0,0.45089688]
[1749572250556,0.63047408,109130.0,109120.0,0.4871695]
[1749572251088,0.63047408,109130.0,109120.0,0.45089688]
[1749572251620,0.63047408,109130.0,109120.0,0.4871695]
[1749572252274,0.72182748,109130.0,109120.0,0.05908546]
[1749572252488,0.72182748,109130.0,109120.0,0.0590856]
[1749572252697,0.72182748,109130.0,109120.0,0.05908676]
[1749572253126,0.72182748,109130.0,109120.0,0.05908678]
[1749572253337,0.72182748,109130.0,109120.0,0.03191666]
[1749572253775,0.72182748,109130.0,109120.0,0.05908678]
[1749572254196,0.72182748,109130.0,109120.0,0.05908569]
[1749572254467,0.72182748,109130.0,109120.0,0.03191298]
[1749572254697,0.81318088,109130.0,109120.0,0.02372676]
[1749572254971,0.81318088,109130.0,109100.0,0.06544274]
[1749572254972,0.19246614,109110.0,109100.0,0.06544274]
[1749572255210,0.38117954,109110.0,109100.0,0.06544274]
[1749572255438,0.38117954,109110.0,109100.0,0.07362765]
[1749572255684,0.72117954,109110.0,109100.0,0.03735503]
[1749572255907,0.81162594,109110.0,109100.0,0.03734806]
[1749572256142,0.72317954,109110.0,109100.0,0.01017804]
[1749572256600,0.72317954,109110.0,109100.0,0.002]
[1749572256837,0.72317954,109110.0,109100.0,0.01017863]
[1749572257570,0.72317954,109110.0,109100.0,0.01018026]
[1749572258034,0.81653294,109110.0,109100.0,0.01018026]
[1749572258273,0.81653294,109110.0,109100.0,0.01018028]
[1749572258503,0.81653294,109110.0,109100.0,0.01018015]
[1749572258739,0.81653294,109110.0,109100.0,0.01018123]
[1749572259188,0.81653294,109110.0,109100.0,0.002]
[1749572259408,0.81653294,109110.0,109100.0,0.01017347]
[1749572259856,0.81653294,109110.0,109100.0,0.002]
[1749572260588,0.54166775,109090.0,109080.0,0.02917012]
[1749572260819,0.75690115,109090.0,109080.0,0.03734565]
[1749572261737,0.75690115,109090.0,109080.0,0.03733869]
[1749572261959,0.75690115,109090.0,109080.0,0.02917012]
[1749572262200,0.75690115,109090.0,109080.0,0.07361123]
[1749572262685,0.75690115,109090.0,109080.0,0.03733861]
[1749572262907,0.75890115,109090.0,109080.0,0.02917012]
[1749572264034,0.85025455,109090.0,109080.0,0.02917012]
[1749572264491,0.87773841,109090.0,109080.0,0.02917012]
[1749572266880,0.87773841,109090.0,109080.0,0.05089836]
[1749572267302,0.87773841,109090.0,109080.0,0.05905716]
[1749572267788,0.87773841,109090.0,109080.0,0.05905572]
[1749572268426,0.87773841,109090.0,109080.0,0.05905447]
[1749572268644,0.87773841,109090.0,109080.0,0.02372824]
[1749572269695,0.87773841,109090.0,109080.0,0.002]
[1749572271196,0.78638501,109090.0,109080.0,0.002]
[1749572272540,0.78638501,109090.0,109080.0,0.02371229]
[1749572273211,0.78438501,109090.0,109080.0,0.02371229]
[1749572273419,0.66050501,109090.0,109080.0,0.02371229]
[1749572273906,0.78434501,109090.0,109080.0,0.02371229]
[1749572274134,0.78438501,109090.0,109080.0,0.02371229]
[1749572276310,0.87573841,109090.0,109080.0,0.02371229]
[1749572277638,0.87573841,109090.0,109080.0,0.04031229]
[1749572277960,0.90793841,109090.0,109080.0,0.02371229]
[1749572279435,0.90893841,109090.0,109080.0,0.02371229]
[1749572279852,0.90993841,109090.0,109080.0,0.02371229]
[1749572281336,0.81858501,109090.0,109080.0,0.02371229]
[1749572281808,0.78638501,109090.0,109080.0,0.02371229]
[1749572282222,0.66250501,109090.0,109080.0,0.02371229]
[1749572282439,0.78638501,109090.0,109080.0,0.05088241]
[1749572282655,0.66250501,109090.0,109080.0,0.05088241]
[1749572282885,0.68902501,109090.0,109080.0,0.06658241]
[1749572283136,0.78638501,109090.0,109080.0,0.08218241]
[1749572283350,0.78638501,109090.0,109080.0,0.05088241]
[1749572283565,0.78638501,109090.0,109080.0,0.06658241]
[1749572283808,0.78638501,109090.0,109080.0,0.08218241]
[1749572284026,0.78638501,109090.0,109080.0,0.05088241]
[1749572285616,0.66250501,109090.0,109080.0,0.05088241]
[1749572285829,0.78638501,109090.0,109080.0,0.05088241]
[1749572286779,0.81903075,109090.0,109080.0,0.05088241]
[1749572287635,0.83503075,109090.0,109080.0,0.05088241]
[1749572288722,0.80238501,109090.0,109080.0,0.05088241]
[1749572294281,0.81808501,109090.0,109080.0,0.05088241]
[1749572295847,0.81808501,109090.0,109080.0,0.05086483]
[1749572297357,0.81808501,109090.0,109080.0,0.08713745]
[1749572297790,0.81808501,109090.0,109080.0,0.05086483]
[1749572298007,0.90943841,109090.0,109080.0,0.08713745]
[1749572298271,0.90943841,109090.0,109080.0,0.05086483]
[1749572298462,0.81808501,109090.0,109080.0,0.08713745]
[1749572299128,0.81808501,109090.0,109080.0,0.05086483]
[1749572299362,0.81808501,109090.0,109080.0,0.08713745]
[1749572302180,0.66250501,109090.0,109080.0,0.11873745]
[1749572302386,0.57115161,109090.0,109080.0,0.14598766]
[1749572302594,0.66847161,109090.0,109080.0,0.14592703]
[1749572302819,0.66847161,109090.0,109080.0,0.10971504]
[1749572303433,0.20366775,109090.0,109080.0,0.80348072]
[1749572303647,0.1486763,109090.0,109080.0,0.74908338]
[1749572303852,0.16700919,109090.0,109080.0,0.83609613]
[1749572304060,0.08453034,109090.0,109080.0,0.92744953]
[1749572304649,0.08453034,109090.0,109080.0,0.85497763]
[1749572304852,0.08453034,109090.0,109080.0,1.32744953]
[1749572304853,0.08353034,109090.0,109080.0,1.32744953]
[1749572305054,0.08253034,109090.0,109080.0,1.33044953]
[1749572305534,0.08253034,109090.0,109080.0,1.33344953]
[1749572305739,0.08253034,109090.0,109080.0,1.32744953]
[1749572305918,0.08253034,109090.0,109080.0,1.33044953]
[1749572306181,0.08253034,109090.0,109080.0,1.33344953]
[1749572308451,0.08253034,109090.0,109080.0,1.26097763]
[1749572309285,0.08253034,109090.0,109080.0,0.56721195]
[1749572309556,0.08253034,109090.0,109080.0,1.26097763]
[1749572311581,0.08253034,109090.0,109080.0,0.56721195]
[1749572311860,0.08253034,109090.0,109080.0,0.62125607]
[1749572313128,0.08253034,109090.0,109080.0,0.71853607]
[1749572314544,0.08253034,109090.0,109080.0,1.41230175]
[1749572314767,0.08253034,109090.0,109080.0,1.43072953]
[1749572315374,0.08253034,109090.0,109080.0,0.73696385]
[1749572315660,0.08253034,109090.0,109080.0,1.33344953]
[1749572315822,0.08253034,109090.0,109080.0,1.43072953]
[1749572317757,0.08253034,109090.0,109080.0,0.73696385]
[1749572317963,0.08253034,109090.0,109080.0,1.43072953]
[1749572318378,0.21083441,109090.0,109080.0,2.12449521]
[1749572318577,0.12836698,109090.0,109080.0,2.12449521]
[1749572318736,0.14670004,109090.0,109080.0,1.43072953]
[1749572319111,0.02749955,109090.0,109080.0,2.31701436]
[1749572319309,0.00916598,109090.0,109080.0,2.34541592]
[1749572319749,0.01833213,109090.0,109080.0,2.27294402]
[1749572319958,0.01833213,109090.0,109080.0,2.2729441]
[1749572320362,0.01833213,109090.0,109080.0,2.27294419]
[1749572320590,0.01833213,109090.0,109080.0,2.28211118]
[1749572320766,0.01833213,109090.0,109080.0,2.35403651]
[1749572321667,0.02749845,109090.0,109080.0,2.34486952]
[1749572321866,0.02749845,109090.0,109080.0,2.35403659]
[1749572322141,0.02749845,109090.0,109080.0,2.34486952]
[1749572322468,0.02749845,109090.0,109080.0,2.32653512]
[1749572322700,0.20166792,109090.0,109080.0,1.53380296]
[1749572322910,0.20166792,109090.0,109080.0,1.43108296]
[1749572324014,0.20166792,109090.0,109080.0,1.61443462]
[1749572324210,0.0274998,109090.0,109080.0,2.16097778]
[1749572324563,0.21083466,109090.0,109080.0,1.45804452]
[1749572324773,0.21083466,109090.0,109080.0,2.1518102]
[1749572324971,0.21083466,109090.0,109080.0,1.46721201]
[1749572325181,0.01833306,109090.0,109080.0,1.65973108]
[1749572325402,0.02749971,109090.0,109080.0,1.65973108]
[1749572325811,0.01833306,109090.0,109080.0,1.65973108]
[1749572326049,0.0274998,109090.0,109080.0,1.65056367]
[1749572326218,0.01833306,109090.0,109080.0,1.65056367]
[1749572326442,0.01833306,109090.0,109080.0,1.65973108]
[1749572327009,0.01833272,109090.0,109080.0,1.58780575]
[1749572327252,0.01833272,109090.0,109080.0,1.59697308]
[1749572327444,0.01833272,109090.0,109080.0,2.28157143]
[1749572327645,0.02749937,109090.0,109080.0,2.28157143]
[1749572328272,0.02749937,109090.0,109080.0,1.57859834]
[1749572328425,0.02749937,109090.0,109080.0,1.39524677]
[1749572328637,0.1283729,109100.0,109090.0,0.72546568]
[1749572328979,0.1283729,109100.0,109090.0,0.81681908]
[1749572329314,0.1283729,109100.0,109090.0,1.21681908]
[1749572329724,0.1283729,109100.0,109090.0,1.28875658]
[1749572329925,0.1283729,109100.0,109090.0,1.29075658]
[1749572330130,0.1283729,109100.0,109090.0,1.29275658]
[1749572331418,0.1283729,109100.0,109090.0,0.5989909]
[1749572331616,0.1283729,109100.0,109090.0,0.6206192]
[1749572331814,0.1283729,109100.0,109090.0,0.61349006]
[1749572332018,0.1283729,109100.0,109090.0,0.59789006]
[1749572332311,0.1283729,109100.0,109090.0,0.5889192]
[1749572332504,0.1597729,109100.0,109090.0,0.6142217]
[1749572332895,0.1597729,109100.0,109090.0,0.62876255]
[1749572334104,0.1597729,109100.0,109090.0,0.53152255]
[1749572334299,0.1597729,109100.0,109090.0,0.68289163]
[1749572334504,0.1597729,109100.0,109090.0,0.57699738]
[1749572337829,0.1283729,109100.0,109090.0,0.68289163]
[1749572338041,0.1283729,109100.0,109090.0,0.62876255]
[1749572338735,0.1283729,109100.0,109090.0,0.70070005]
[1749572339597,0.1441729,109100.0,109090.0,0.60346005]
[1749572339814,0.1441729,109100.0,109090.0,0.70070005]
[1749572340658,0.1283729,109100.0,109090.0,0.70070005]
[1749572341718,0.1283729,109100.0,109090.0,1.39446573]
[1749572341933,0.0459038,109100.0,109090.0,0.73240005]
[1749572342146,0.0459038,109100.0,109090.0,1.42616573]
[1749572342809,0.0459038,109100.0,109090.0,1.40453743]
[1749572343684,0.18330125,109110.0,109100.0,0.01454085]
[1749572343947,0.18330125,109110.0,109100.0,1.02220039]
[1749572344599,0.00916481,109110.0,109100.0,1.21468434]
[1749572344824,0.00916481,109110.0,109100.0,1.02220039]
[1749572344825,0.21079584,109110.0,109100.0,1.02220039]
[1749572345040,0.02749358,109110.0,109100.0,1.11105305]
[1749572345257,0.03665839,109110.0,109100.0,1.1546187]
[1749572345470,0.03665831,109110.0,109100.0,1.55461861]
[1749572345680,0.03665831,109110.0,109100.0,1.54245305]
[1749572345915,0.03665831,109110.0,109100.0,1.5556187]
[1749572346126,0.20161238,109120.0,109110.0,0.0314]
[1749572346354,0.2107766,109120.0,109110.0,1.00756259]
[1749572346572,0.2016128,109120.0,109110.0,1.40756259]
[1749572347892,0.2016128,109120.0,109110.0,1.33738842]
[1749572348533,0.1626128,109120.0,109110.0,1.35392927]
[1749572348747,0.1626128,109120.0,109110.0,1.42606825]
[1749572348972,0.17177702,109120.0,109110.0,1.42606825]
[1749572349419,0.18094115,109120.0,109110.0,1.42606825]
[1749572349641,0.16459425,109130.0,109120.0,0.0153]
[1749572349883,0.16459425,109130.0,109120.0,0.22552274]
[1749572350103,0.16459425,109130.0,109120.0,0.91928842]
[1749572350398,0.17375738,109130.0,109120.0,1.0070274]
[1749572350612,0.02948921,109130.0,109120.0,1.41401675]
[1749572350825,0.020326,109130.0,109120.0,1.42318072]
[1749572351012,0.02948929,109130.0,109120.0,1.41401675]
[1749572351253,0.020326,109130.0,109120.0,1.42418072]
[1749572351479,0.03865166,109130.0,109120.0,1.4048527]
[1749572351704,0.04781504,109130.0,109120.0,1.44646821]
[1749572351920,0.52325087,109140.0,109130.0,0.04474085]
[1749572352137,0.52325087,109140.0,109130.0,0.92358572]
[1749572352814,0.52325087,109140.0,109130.0,0.85152927]
[1749572353897,0.52325087,109140.0,109130.0,0.83642927]
[1749572354136,0.52325087,109140.0,109130.0,0.15199539]
[1749572354356,0.18325087,109140.0,109130.0,0.84676107]
[1749572355115,0.18325087,109140.0,109130.0,0.15299539]
[1749572355269,0.18325087,109140.0,109130.0,0.23709539]
[1749572355657,0.18325087,109140.0,109130.0,0.29103267]
[1749572356095,0.19865087,109140.0,109130.0,0.29103267]
[1749572356338,0.19865087,109140.0,109130.0,0.18450087]
[1749572356561,0.17485087,109140.0,109130.0,0.28170087]
[1749572357005,0.17485087,109140.0,109130.0,0.28166087]
[1749572359976,0.17485087,109140.0,109130.0,0.18450087]
[1749572360220,0.17485087,109140.0,109130.0,0.31761555]
[1749572360901,0.17485087,109140.0,109130.0,0.08759336]
[1749572361122,0.17485087,109140.0,109130.0,0.05163868]
[1749572361372,0.63841087,109140.0,109130.0,0.02466934]
[1749572361829,0.63841087,109140.0,109130.0,0.42466934]
[1749572362045,0.63841087,109140.0,109130.0,0.42366934]
[1749572362543,0.63841087,109140.0,109130.0,0.42166934]
[1749572362763,0.63841087,109140.0,109130.0,0.02166934]
[1749572364461,0.63941087,109140.0,109130.0,0.02166934]
[1749572364870,0.63941087,109140.0,109120.0,0.4]
[1749572364871,0.56293087,109130.0,109120.0,0.4]
[1749572365083,0.56293087,109130.0,109120.0,0.42161281]
[1749572367309,0.56293087,109130.0,109120.0,0.02161281]
[1749572367931,0.56293087,109130.0,109120.0,0.42161281]
[1749572369594,0.56293087,109130.0,109120.0,0.44858215]
[1749572370799,0.66009087,109130.0,109120.0,0.04858215]
[1749572371444,0.66009087,109130.0,109120.0,0.44858215]
[1749572371676,0.56293087,109130.0,109120.0,0.44858215]
[1749572371796,0.66009087,109130.0,109120.0,0.44858215]
[1749572373577,0.56293087,109130.0,109120.0,0.48453683]
[1749572374005,0.56293087,109130.0,109120.0,0.58169683]
[1749572374228,0.56293087,109130.0,109120.0,0.18169683]
[1749572374889,0.56293087,109130.0,109120.0,0.58169683]
[1749572376907,0.56293087,109130.0,109120.0,0.48453683]
[1749572377371,0.56293087,109130.0,109120.0,0.44858215]
[1749572380015,0.56293087,109130.0,109120.0,0.04858215]
[1749572380450,0.56293087,109130.0,109120.0,0.44858215]
[1749572382420,0.56293087,109130.0,109120.0,0.44868699]
[1749572383464,0.56293087,109130.0,109120.0,0.04868699]
[1749572383671,0.56293087,109130.0,109120.0,0.08464167]
[1749572383879,0.56293087,109130.0,109120.0,0.48464167]
[1749572384097,0.1924485,109120.0,109110.0,0.06300301]
[1749572384320,0.6545019,109120.0,109110.0,0.02165157]
[1749572384532,0.6545019,109120.0,109100.0,0.02904833]
[1749572384533,0.56316614,109110.0,109100.0,0.002]
[1749572384767,0.75167954,109110.0,109100.0,0.002]
[1749572386658,0.75567954,109110.0,109100.0,0.002]
[1749572386867,0.78294045,109110.0,109100.0,0.002]
[1749572388848,0.68578045,109110.0,109100.0,0.002]
[1749572389267,0.81825867,109110.0,109100.0,0.002]
[1749572395282,0.57326775,109090.0,109080.0,0.06500301]
[1749572395473,0.76178115,109090.0,109080.0,0.07310492]
[1749572395671,0.76178115,109090.0,109080.0,0.07310549]
[1749572396099,0.76178115,109090.0,109080.0,0.03715081]
[1749572396323,0.76178115,109090.0,109080.0,0.02904833]
[1749572396526,0.76178115,109090.0,109080.0,0.0588007]
[1749572396735,0.76178115,109090.0,109080.0,0.05880071]
[1749572396937,0.76178115,109090.0,109080.0,0.05880115]
[1749572397141,0.76178115,109090.0,109080.0,0.05880123]
[1749572397553,0.76178115,109090.0,109080.0,0.05880092]
[1749572397756,0.76178115,109090.0,109080.0,0.05880083]
[1749572397757,0.66462115,109090.0,109080.0,0.05880083]
[1749572397962,0.68158775,109090.0,109080.0,0.05880083]
[1749572398174,0.68158775,109090.0,109080.0,0.4588003]
[1749572398388,0.66518775,109090.0,109080.0,0.49475394]
[1749572398598,0.66518775,109090.0,109080.0,0.49475393]
[1749572399018,0.66518775,109090.0,109080.0,0.48665367]
[1749572399432,0.66518775,109090.0,109080.0,0.49475203]
[1749572399629,0.66518775,109090.0,109080.0,0.49475121]
[1749572399876,0.66518775,109090.0,109080.0,0.49475098]
[1749572400113,0.66518775,109090.0,109080.0,0.49475103]
[1749572400300,0.54166775,109090.0,109080.0,0.48665367]
[1749572400519,0.54166775,109090.0,109080.0,0.49475013]
[1749572400727,0.54166775,109090.0,109080.0,0.4947493]
[1749572400926,0.63878775,109090.0,109080.0,0.4947493]
[1749572401158,0.63878775,109090.0,109080.0,0.09474943]
[1749572401359,0.54166775,109090.0,109080.0,0.09474943]
[1749572401574,0.54166775,109090.0,109080.0,0.50994943]
[1749572401776,0.54166775,109090.0,109080.0,0.62286747]
[1749572402006,0.54166775,109090.0,109080.0,0.61477367]
[1749572402434,0.54166775,109090.0,109080.0,0.62286649]
[1749572402602,0.54166775,109090.0,109080.0,0.6228665]
[1749572403002,0.54166775,109090.0,109080.0,0.62286854]
[1749572403300,0.54166775,109090.0,109080.0,0.6497567]
[1749572403985,0.54166775,109090.0,109080.0,0.64975538]
[1749572404202,0.54166775,109090.0,109080.0,0.53683544]
[1749572404416,0.55766775,109090.0,109080.0,0.46769816]
[1749572405344,0.55766775,109090.0,109080.0,0.4677042]
[1749572405556,0.55766775,109090.0,109080.0,0.45960534]
[1749572405783,0.55766775,109090.0,109080.0,0.51354262]
[1749572406009,0.55766775,109090.0,109080.0,0.52164315]
[1749572406461,0.57316775,109090.0,109080.0,0.12164315]
[1749572406683,0.57316775,109090.0,109080.0,0.0677073]
[1749572407369,0.57316775,109090.0,109080.0,0.09477842]
[1749572407607,0.57316775,109090.0,109080.0,0.09477861]
[1749572407811,0.57316775,109090.0,109080.0,0.09478542]
[1749572408008,0.57316775,109090.0,109080.0,0.09478566]
[1749572408529,0.57316775,109090.0,109080.0,0.09478563]
[1749572408749,0.57316775,109090.0,109080.0,0.0866827]
[1749572409181,0.75341986,109090.0,109080.0,0.05883479]
[1749572409389,0.75341986,109090.0,109080.0,0.05883545]
[1749572409605,0.67028775,109090.0,109080.0,0.05883545]
[1749572410241,0.67028775,109090.0,109080.0,0.05072802]
[1749572410452,0.67128775,109090.0,109080.0,0.45884154]
[1749572410655,0.67128775,109090.0,109080.0,0.45884142]
[1749572410865,0.67128775,109090.0,109080.0,0.45072802]
[1749572411073,0.67128775,109090.0,109080.0,0.45884087]
[1749572411494,0.55866775,109090.0,109080.0,0.49479555]
[1749572411948,0.55866775,109090.0,109080.0,0.46771819]
[1749572412216,0.57486775,109090.0,109080.0,0.4677343]
[1749572412405,0.57486775,109090.0,109080.0,0.45960534]
[1749572413474,0.67198775,109090.0,109080.0,0.05960534]
[1749572413674,0.67198775,109090.0,109080.0,0.11354262]
[1749572413903,0.67198775,109090.0,109080.0,0.51354262]
[1749572414326,0.67198775,109090.0,109080.0,0.11354262]
[1749572416708,0.67198775,109090.0,109080.0,0.05960534]
[1749572417567,0.76015585,109090.0,109080.0,0.05960534]
[1749572417784,0.67198775,109090.0,109080.0,0.05960534]
[1749572418398,0.67198775,109090.0,109080.0,0.08675321]
[1749572419482,0.76334115,109090.0,109080.0,0.08675321]
[1749572423590,0.76334115,109090.0,109080.0,0.05079853]
[1749572424028,0.76334115,109090.0,109080.0,0.02365066]
[1749572424256,0.85469455,109090.0,109080.0,0.03178765]
[1749572424893,0.85469455,109090.0,109080.0,0.02365066]
[1749572425116,0.85469455,109090.0,109070.0,0.06310255]
[1749572425117,0.22391907,109080.0,109070.0,0.02714787]
[1749572425332,0.22391907,109080.0,109060.0,0.02914787]
[1749572425333,0.56393672,109070.0,109060.0,0.02914787]
[1749572425604,0.75237012,109070.0,109060.0,0.002]
[1749572425826,0.75237012,109070.0,109060.0,0.01014107]
[1749572426036,0.75237012,109070.0,109060.0,0.01014324]
[1749572426519,0.75437012,109070.0,109060.0,0.01014324]
[1749572426965,0.75437012,109070.0,109060.0,0.002]
[1749572427184,0.75437012,109070.0,109060.0,0.01014631]
[1749572427605,0.75437012,109070.0,109060.0,0.002]
[1749572428464,0.84572352,109070.0,109060.0,0.002]
[1749572429100,0.84772352,109070.0,109060.0,0.002]
[1749572431508,0.75637012,109070.0,109060.0,0.002]
[1749572436110,0.56407203,109050.0,109040.0,0.02914787]
[1749572436326,0.68751203,109050.0,109040.0,0.02914787]
[1749572436757,0.68751203,109050.0,109040.0,0.05425355]
[1749572437194,0.68751203,109050.0,109040.0,0.07598295]
[1749572437633,0.71514164,109050.0,109040.0,0.0769828]
[1749572437852,0.71514164,109050.0,109040.0,0.07698174]
[1749572438116,0.71514164,109050.0,109040.0,0.06984842]
[1749572438360,0.71514164,109050.0,109040.0,0.061007]
[1749572438608,0.71514164,109050.0,109040.0,0.07797592]
[1749572439279,0.71514164,109050.0,109040.0,0.07797296]
[1749572439496,0.71514164,109050.0,109040.0,0.07597296]
[1749572439743,0.71614164,109050.0,109040.0,0.06784284]
[1749572439962,0.80849504,109050.0,109040.0,0.06784318]
[1749572440209,0.80849504,109050.0,109040.0,0.06784321]
[1749572440437,0.80849504,109050.0,109040.0,0.04882275]
[1749572440438,0.89984844,109050.0,109040.0,0.04882275]
[1749572440658,0.89984844,109050.0,109040.0,0.03185681]
[1749572441541,0.89984844,109050.0,109040.0,0.0237294]
[1749572441759,0.89984844,109050.0,109040.0,0.03185942]
[1749572442227,0.77640844,109050.0,109040.0,0.03185955]
[1749572442453,0.89984844,109050.0,109040.0,0.03185955]
[1749572442876,0.9088428,109050.0,109040.0,0.0237294]
[1749572443949,0.7854028,109050.0,109040.0,0.0237294]
[1749572444166,0.6777494,109050.0,109040.0,0.0237294]
[1749572444381,0.6777494,109050.0,109040.0,0.04882937]
[1749572444382,0.694636,109050.0,109040.0,0.04882937]
[1749572444811,0.694636,109050.0,109040.0,0.04069769]
[1749572445017,0.694636,109050.0,109040.0,0.02372732]
[1749572445227,0.571196,109050.0,109040.0,0.04069653]
[1749572445445,0.571196,109050.0,109040.0,0.06608648]
[1749572445668,0.65928164,109050.0,109040.0,0.13510686]
[1749572445925,0.66849883,109050.0,109040.0,0.13510686]
[1749572446191,0.56220164,109050.0,109040.0,0.13510686]
[1749572446408,0.56120164,109050.0,109040.0,0.5079477]
[1749572446625,0.56120164,109050.0,109040.0,0.50794994]
[1749572446839,0.56120164,109050.0,109040.0,0.491982]
[1749572447048,0.56120164,109050.0,109040.0,0.56288333]
[1749572447502,0.19257203,109050.0,109040.0,0.56288333]
[1749572447916,0.19257203,109050.0,109040.0,0.56388333]
[1749572448342,0.19257203,109050.0,109040.0,0.56389509]
[1749572448757,0.19257203,109050.0,109040.0,0.56389508]
[1749572448952,0.19257203,109050.0,109040.0,0.563895]
[1749572449403,0.19257203,109050.0,109040.0,0.12794032]
[1749572449611,0.19257203,109050.0,109040.0,0.12794352]
[1749572450005,0.19257203,109050.0,109040.0,0.52794349]
[1749572450213,0.19257203,109050.0,109040.0,0.5109646]
[1749572450429,0.19257203,109050.0,109040.0,0.52795172]
[1749572450637,0.19257203,109050.0,109040.0,0.52795254]
[1749572450852,0.19257203,109050.0,109040.0,0.52795842]
[1749572451064,0.19257203,109050.0,109040.0,0.54249927]
[1749572451298,0.19257203,109050.0,109040.0,0.48856199]
[1749572451519,0.19257203,109050.0,109040.0,0.54362462]
[1749572451744,0.19257203,109050.0,109040.0,0.54298676]
[1749572451958,0.19257203,109050.0,109040.0,0.51234767]
[1749572452185,0.19257203,109050.0,109040.0,0.51234821]
[1749572452397,0.19257203,109050.0,109040.0,0.4953458]
[1749572452638,0.19257203,109050.0,109040.0,0.51234909]
[1749572453300,0.19257203,109050.0,109040.0,0.51237115]
[1749572453747,0.19257203,109050.0,109040.0,0.5105458]
[1749572453976,0.19257203,109050.0,109040.0,0.5275711]
[1749572454193,0.19257203,109050.0,109040.0,0.5105458]
[1749572454407,0.19257203,109050.0,109040.0,0.45612732]
[1749572454623,0.19257203,109050.0,109040.0,0.47315311]
[1749572455271,0.19257203,109050.0,109040.0,0.4731555]
[1749572455483,0.19257203,109050.0,109040.0,0.45612732]
[1749572456114,0.19257203,109050.0,109040.0,0.54521368]
[1749572456317,0.19257203,109050.0,109040.0,0.52818377]
[1749572458633,0.19257203,109050.0,109040.0,0.42572732]
[1749572459464,0.19257203,109050.0,109040.0,0.44212732]
[1749572460280,0.19257203,109050.0,109040.0,0.45782732]
[1749572461947,0.19257203,109050.0,109040.0,0.51233262]
[1749572462587,0.19257203,109050.0,109040.0,0.48023262]
[1749572462799,0.20857203,109050.0,109040.0,0.48023262]
[1749572463013,0.58264055,109050.0,109040.0,0.51657042]
[1749572463223,0.58264055,109050.0,109040.0,0.08932253]
[1749572463639,0.56417203,109050.0,109040.0,0.08932253]
[1749572463841,0.68749203,109050.0,109040.0,0.08932253]
[1749572464088,0.68749203,109050.0,109040.0,0.08832253]
[1749572464504,0.68849203,109050.0,109040.0,0.08832253]
[1749572465393,0.68849203,109050.0,109040.0,0.08732253]
[1749572465599,0.68949203,109050.0,109040.0,0.10436083]
[1749572465808,0.81756944,109050.0,109040.0,0.10436083]
[1749572466227,0.81756944,109050.0,109040.0,0.10435949]
[1749572466471,0.78084543,109050.0,109040.0,0.10435931]